bitfinex/quotes_ETHUSD_20250115
["timestamp","ask_amount","ask_price","bid_price","bid_amount"]
[1736929151771,2.90665026,3238.1,3237.5,0.176]
[1736929151972,3.08832,3238.0,3237.5,0.176]
[1736929153001,3.08842,3237.9,3237.5,0.176]
[1736929154799,3.08842,3237.9,3237.4,0.7525]
[1736929155008,3.08842,3237.9,3237.6,0.176]
[1736929157099,3.08842,3237.9,3237.4,0.7525]
[1736929157277,3.08842,3237.9,3237.7,0.176]
[1736929157871,5.99490026,3238.1,3237.7,0.176]
[1736929160194,5.99490026,3238.1,3237.8,0.176]
[1736929160393,3.08804,3238.3,3237.8,0.176]
[1736929160593,3.08804,3238.3,3237.9,0.7525]
[1736929163227,3.08816,3238.2,3237.9,0.7525]
[1736929166496,2.91036817,3238.4,3237.9,0.7525]
[1736929166799,3.08823,3238.1,3237.9,0.7525]
[1736929170541,3.0884,3238.0,3237.8,0.176]
[1736929170750,0.59987682,3238.0,3237.5,0.7525]
[1736929170904,3.08853,3237.8,3237.6,0.176]
[1736929172234,3.08861,3237.7,3237.6,0.176]
[1736929172399,3.08861,3237.7,3237.1,2.048619]
[1736929172400,3.08861,3237.7,3237.5,0.176]
[1736929172597,3.0887,3237.6,3237.5,0.176]
[1736929172851,3.08899,3237.3,3237.2,1.60351866]
[1736929173137,5.99935817,3237.3,3237.2,1.60351866]
[1736929173950,2.91036817,3237.3,3237.1,0.176]
[1736929174106,3.08908,3237.2,3237.1,0.176]
[1736929181165,3.08908,3237.2,3236.9,0.176]
[1736929182585,3.08908,3237.2,3237.0,0.176]
[1736929187900,3.08918,3237.1,3237.0,0.176]
[1736929189597,3.86608,3237.1,3237.0,0.176]
[1736929189760,3.86608,3237.1,3236.9,0.176]
[1736929192016,3.08918,3237.1,3236.9,0.176]
[1736929194704,5.99964817,3237.0,3236.9,0.176]
[1736929195805,5.99964817,3237.0,3236.5,0.7769]
[1736929195806,3.0894,3236.9,3236.5,0.7769]
[1736929196009,3.0894,3236.9,3236.6,0.176]
[1736929199430,0.7769,3237.3,3236.6,0.176]
[1736929199705,3.08892,3237.4,3236.6,0.176]
[1736929200412,3.08892,3237.4,3236.7,1.06997449]
[1736929200808,5.99946817,3237.2,3236.7,1.06997449]
[1736929201232,5.99946817,3237.2,3236.6,0.58336022]
[1736929202246,2.91036817,3237.2,3236.6,0.176]
[1736929202407,3.08918,3237.1,3236.6,0.176]
[1736929203130,3.08929,3237.0,3236.6,0.176]
[1736929204651,3.08929,3237.0,3236.5,0.7769]
[1736929204864,3.08929,3237.0,3236.7,0.176]
[1736929206107,3.08947,3236.8,3236.7,0.176]
[1736929206317,3.08947,3236.8,3236.5,0.7769]
[1736929206655,3.08947,3236.8,3236.6,0.176]
[1736929207804,2.91036817,3236.9,3236.6,0.176]
[1736929208003,3.0893,3237.0,3236.6,0.176]
[1736929208950,2.91036817,3236.8,3236.2,2.113519]
[1736929209099,2.91036817,3236.8,3236.5,0.176]
[1736929210351,3.08957,3236.7,3236.5,0.176]
[1736929211404,2.91036817,3236.8,3236.5,0.176]
[1736929212009,2.91036817,3236.8,3236.2,0.8174]
[1736929212203,2.91036817,3236.8,3236.3,0.176]
[1736929212534,3.08915,3237.2,3236.4,0.8174]
[1736929213016,3.67806817,3237.7,3236.5,0.58089581]
[1736929213227,3.67806817,3237.7,3236.8,0.8174]
[1736929213427,3.67806817,3237.7,3236.9,0.03088991]
[1736929213633,3.08871,3237.6,3236.9,0.03088991]
[1736929213845,2.91036817,3237.7,3237.0,0.8174]
[1736929214058,3.08873,3237.6,3237.0,0.8174]
[1736929214255,2.91036817,3237.4,3237.0,0.8174]
[1736929214458,5.99926817,3237.4,3237.0,0.8174]
[1736929214628,6.76696817,3237.4,3236.4,1.3674]
[1736929214945,2.91036817,3237.1,3236.5,0.176]
[1736929215153,5.99956817,3237.1,3236.5,0.176]
[1736929215520,5.99956817,3237.1,3236.5,2.76710124]
[1736929215717,5.99956817,3237.1,3236.8,1.29555062]
[1736929215937,3.08901,3237.3,3236.8,1.29555062]
[1736929216170,3.08901,3237.3,3236.9,0.7634]
[1736929216717,3.08914,3237.2,3236.9,0.7634]
[1736929217561,3.08914,3237.2,3237.0,0.176]
[1736929218723,5.99954817,3237.1,3236.7,1.29555062]
[1736929219052,3.0893,3237.0,3236.8,0.176]
[1736929219256,3.0893,3237.0,3236.8,2.85924898]
[1736929219968,3.0893,3237.0,3236.9,1.07329959]
[1736929222083,3.0893,3237.0,3236.9,2.68342733]
[1736929222249,2.91036817,3237.1,3236.9,2.68342733]
[1736929222872,2.91036817,3237.1,3237.0,1.07329959]
[1736929223278,5.99910817,3237.6,3237.1,0.8013]
[1736929223459,3.08888,3237.5,3237.1,0.8013]
[1736929223675,0.796,3237.8,3237.0,1.07329959]
[1736929223676,2.91036817,3237.3,3237.0,1.07329959]
[1736929224054,2.91036817,3237.3,3237.1,2.68348465]
[1736929224270,3.88457,3237.8,3237.1,2.68348465]
[1736929224271,3.08873,3237.6,3237.2,0.8013]
[1736929224473,2.91036817,3237.7,3237.2,0.8013]
[1736929224636,2.91036817,3237.7,3237.3,1.07329959]
[1736929224841,5.99903817,3237.7,3237.3,1.07329959]
[1736929225469,5.99903817,3237.7,3237.4,2.68339026]
[1736929226177,5.99903817,3237.7,3237.2,2.09685062]
[1736929226679,5.99903817,3237.7,3237.3,2.68287138]
[1736929227183,5.99903817,3237.7,3237.4,1.07314855]
[1736929227686,5.99903817,3237.7,3237.2,2.09685062]
[1736929227887,2.91036817,3237.4,3237.2,1.29555062]
[1736929228487,2.91036817,3237.4,3237.3,1.07306207]
[1736929229949,3.08878,3237.6,3237.3,1.87436207]
[1736929230143,2.91036817,3237.7,3237.3,1.87436207]
[1736929230426,2.91036817,3237.7,3237.3,2.19444234]
[1736929230808,2.91036817,3237.7,3237.4,2.6821595]
[1736929231453,2.91036817,3237.7,3237.5,1.07306207]
[1736929232190,3.08808,3238.3,3237.6,0.8013]
[1736929232191,2.91036817,3238.0,3237.6,0.8013]
[1736929232391,0.796,3238.3,3237.7,0.176]
[1736929232392,2.91036817,3238.3,3237.7,0.176]
[1736929232560,2.91036817,3238.5,3237.8,0.8013]
[1736929233400,2.91036817,3238.5,3237.9,0.03088211]
[1736929233557,2.91036817,3238.5,3237.9,0.52929068]
[1736929233761,2.91036817,3238.5,3238.0,0.7636]
[1736929234078,2.91036817,3238.8,3238.2,0.7636]
[1736929234285,0.7827,3239.1,3238.3,0.03087804]
[1736929234286,2.91036817,3239.1,3238.3,0.03087804]
[1736929234499,3.08745,3239.0,3238.4,0.7636]
[1736929234761,2.91036817,3238.8,3238.4,0.7636]
[1736929235415,2.91036817,3238.8,3238.4,1.8357412]
[1736929236023,5.99794817,3238.8,3238.4,0.7636]
[1736929236208,3.08767,3238.7,3238.5,0.176]
[1736929241648,2.91036817,3238.8,3238.5,0.176]
[1736929248240,3.20140499,3238.8,3238.5,0.176]
[1736929248540,3.08766,3238.7,3238.5,0.176]
[1736929251217,2.91036817,3238.8,3238.5,0.176]
[1736929251921,0.8322,3238.7,3237.9,0.7589]
[1736929252157,0.8322,3238.7,3238.0,0.177]
[1736929252158,2.91036817,3238.1,3238.0,0.177]
[1736929252456,2.91036817,3238.1,3237.9,0.7589]
[1736929252625,2.91036817,3238.1,3238.0,0.177]
[1736929253041,5.99859817,3238.1,3237.9,0.177]
[1736929253814,5.99837817,3238.4,3237.9,0.177]
[1736929254054,5.99837817,3238.4,3238.0,0.7589]
[1736929256964,2.91036817,3238.4,3238.0,0.7589]
[1736929257138,5.99861817,3238.1,3237.9,0.177]
[1736929258263,3.08832,3238.0,3237.9,0.177]
[1736929258428,2.91036817,3238.1,3237.9,0.177]
[1736929258764,3.08832,3238.0,3237.9,0.177]
[1736929263681,2.91036817,3238.1,3237.9,0.177]
[1736929265147,5.99859817,3238.1,3237.9,0.177]
[1736929265351,5.99859817,3238.1,3237.7,0.7589]
[1736929265549,5.99859817,3238.1,3237.8,0.177]
[1736929268578,2.91036817,3238.1,3237.8,0.177]
[1736929269346,1.3764443,3237.9,3237.8,0.177]
[1736929271739,1.3764443,3237.9,3237.8,1.24767087]
[1736929272745,1.3764443,3238.1,3237.8,1.24767087]
[1736929272961,1.3764443,3238.1,3237.8,1.57788302]
[1736929273276,1.3764443,3238.1,3237.9,0.7803]
[1736929274238,1.3764443,3238.3,3237.9,0.7803]
[1736929274452,1.3764443,3238.3,3238.0,1.07094182]
[1736929274645,1.3764443,3238.3,3238.1,0.7803]
[1736929274845,1.3764443,3238.3,3238.1,0.96542418]
[1736929275381,1.3764443,3238.3,3238.2,1.07094182]
[1736929276056,1.3764443,3238.3,3238.2,2.6779816]
[1736929276895,1.3764443,3238.3,3238.2,1.07094182]
[1736929277994,3.85135,3239.0,3238.2,1.07094182]
[1736929278194,3.85135,3239.0,3238.4,0.7803]
[1736929278195,1.3764443,3239.0,3238.4,0.7803]
[1736929278560,1.3764443,3239.0,3238.6,0.7803]
[1736929278798,1.3764443,3239.0,3238.7,0.176]
[1736929279167,0.7639,3239.6,3238.8,0.7803]
[1736929279498,3.08662,3239.8,3239.0,0.7803]
[1736929279499,5.99198427,3239.7,3239.0,0.7803]
[1736929280805,3.08681,3239.6,3239.0,0.7803]
[1736929281898,3.08681,3239.6,3239.1,2.67872923]
[1736929282479,3.08681,3239.6,3239.1,1.07149169]
[1736929283268,3.08681,3239.6,3239.0,0.7803]
[1736929283468,3.08681,3239.6,3239.0,0.98791327]
[1736929284172,2.90527427,3239.1,3238.8,2.07613274]
[1736929284373,2.90527427,3239.1,3238.8,1.29583274]
[1736929284705,3.08746,3238.9,3238.8,1.29583274]
[1736929284898,3.85136,3238.9,3238.8,1.29583274]
[1736929285097,3.85136,3238.9,3238.5,0.176]
[1736929285098,3.08773,3238.7,3238.5,0.176]
[1736929285270,2.90527427,3238.6,3238.5,0.176]
[1736929286597,5.99302427,3238.6,3238.5,0.176]
[1736929288970,5.99302427,3238.6,3238.4,0.176]
[1736929289722,2.90527427,3238.6,3238.4,0.176]
[1736929291015,3.08758,3238.8,3238.4,0.176]
[1736929291429,3.66917427,3238.9,3238.4,0.176]
[1736929291430,2.90527427,3238.9,3238.4,0.176]
[1736929292295,3.1958017,3238.9,3238.4,0.176]
[1736929292490,3.08757,3238.8,3238.4,0.176]
[1736929292696,3.1958017,3238.9,3238.4,0.176]
[1736929292697,2.90527427,3238.6,3238.4,0.176]
[1736929293978,3.08759,3238.8,3238.4,0.176]
[1736929295088,2.90527427,3238.9,3238.4,0.176]
[1736929295284,2.90155728,3238.9,3238.4,0.176]
[1736929295490,2.90155728,3238.9,3238.5,0.7621]
[1736929295691,3.08737,3239.0,3238.5,0.7621]
[1736929296299,3.65957427,3239.4,3238.5,0.7621]
[1736929296505,3.087,3239.4,3238.6,0.03087461]
[1736929296703,2.90527427,3239.5,3238.7,0.7819]
[1736929297022,2.90527427,3239.5,3238.9,0.7819]
[1736929298277,5.99224427,3239.5,3238.9,0.7819]
[1736929298471,2.90527427,3239.2,3238.9,0.7819]
[1736929299603,2.90527427,3239.2,3238.6,0.7819]
[1736929299809,2.90527427,3238.9,3238.7,0.176]
[1736929300892,3.08746,3239.0,3238.7,0.176]
[1736929301217,2.90527427,3238.9,3238.7,0.176]
[1736929302207,5.99275427,3238.9,3238.7,0.176]
[1736929303284,5.99275427,3238.9,3238.3,2.38630295]
[1736929303285,5.99275427,3238.9,3238.3,0.7819]
[1736929303530,5.99275427,3238.9,3238.6,0.177]
[1736929306140,0.7543,3239.4,3238.6,0.177]
[1736929306141,2.90527427,3239.2,3238.6,0.177]
[1736929306340,5.99250427,3239.2,3238.6,0.177]
[1736929307634,2.90527427,3239.2,3238.7,0.7819]
[1736929309192,5.99245427,3239.2,3238.7,0.7819]
[1736929311049,3.91056,3239.1,3238.5,1.29583274]
[1736929311192,5.99274427,3238.9,3238.8,0.177]
[1736929311399,3.08767,3238.7,3238.6,0.177]
[1736929312744,3.08767,3238.7,3238.4,0.9281]
[1736929313848,2.90527427,3238.9,3238.4,0.9281]
[1736929314144,5.99277427,3238.9,3238.4,0.9281]
[1736929314903,5.99277427,3238.9,3238.5,1.07072419]
[1736929315757,5.99277427,3238.9,3238.4,0.9281]
[1736929316503,5.99277427,3238.9,3238.5,1.60629649]
[1736929317536,5.99277427,3238.9,3238.6,2.67738986]
[1736929318404,5.99277427,3238.9,3238.4,2.22393274]
[1736929319153,5.99277427,3238.9,3238.5,2.67873835]
[1736929319756,5.99277427,3238.9,3238.4,0.9281]
[1736929320657,5.99277427,3238.9,3238.4,2.22393274]
[1736929321154,2.90527427,3238.9,3238.4,2.22393274]
[1736929321551,2.90527427,3238.9,3238.5,1.60760953]
[1736929321752,2.90527427,3238.9,3238.5,2.67934922]
[1736929321919,2.90527427,3239.2,3238.5,3.16967742]
[1736929322130,2.90527427,3239.2,3238.6,2.67934922]
[1736929322970,2.90527427,3239.2,3238.7,4.75808196]
[1736929323457,8.22155923,3239.5,3238.7,4.75808196]
[1736929324117,8.22155923,3239.5,3238.9,1.29583274]
[1736929324658,8.22155923,3239.5,3239.0,2.90344227]
[1736929324856,8.22155923,3239.5,3239.0,3.97518196]
[1736929325558,8.22155923,3239.5,3239.1,2.67934922]
[1736929326522,2.90527427,3239.5,3239.0,0.8166]
[1736929326867,2.90527427,3239.5,3239.0,1.22221818]
[1736929327426,2.90527427,3239.8,3239.1,0.0308715]
[1736929327647,2.90527427,3239.8,3239.2,0.8166]
[1736929327853,2.90527427,3239.8,3239.3,0.177]
[1736929328358,2.90527427,3239.8,3239.3,0.54732333]
[1736929328564,6.76212427,3240.4,3239.4,0.84746843]
[1736929328784,2.90527427,3240.4,3239.5,3.08688]
[1736929328904,2.90527427,3240.4,3239.6,0.84746368]
[1736929329106,2.90527427,3240.4,3239.8,0.8166]
[1736929330895,2.90527427,3240.4,3239.9,2.67876182]
[1736929331584,2.90527427,3240.4,3240.0,1.07150473]
[1736929332041,2.90527427,3240.4,3239.8,0.8166]
[1736929332678,2.90527427,3240.4,3239.9,1.06938322]
[1736929332829,2.90527427,3240.4,3239.9,1.42690825]
[1736929333454,2.90527427,3240.4,3239.9,0.35752503]
[1736929333657,2.90527427,3240.4,3239.8,0.8166]
[1736929333658,5.99131427,3240.4,3239.8,0.8166]
[1736929334367,2.90527427,3240.1,3239.9,0.175]
[1736929336716,2.90527427,3240.1,3239.8,0.8166]
[1736929337049,2.90527427,3240.1,3240.0,0.175]
[1736929338353,2.90527427,3240.1,3239.6,0.8166]
[1736929338575,2.90527427,3240.1,3239.6,0.175]
[1736929338576,2.90527427,3239.7,3239.6,0.175]
[1736929338848,2.90527427,3239.7,3239.5,0.175]
[1736929339052,2.90527427,3239.7,3239.3,2.11243274]
[1736929339232,2.90527427,3239.7,3239.4,0.175]
[1736929339819,3.08626,3240.2,3239.5,0.8166]
[1736929340026,3.08626,3240.2,3239.5,0.84746693]
[1736929340249,3.08626,3240.2,3239.5,0.8166]
[1736929340773,3.08636,3240.1,3239.5,0.8166]
[1736929341277,5.99143427,3240.3,3239.5,0.84746563]
[1736929341959,3.08598,3240.5,3239.5,0.84746563]
[1736929342537,3.08598,3240.5,3239.6,0.41093756]
[1736929342853,3.08598,3240.5,3239.7,0.8166]
[1736929343056,2.90527427,3240.3,3239.7,1.8846884]
[1736929343256,2.90527427,3240.0,3239.7,1.8846884]
[1736929343650,3.08655,3239.9,3239.7,1.8846884]
[1736929343960,3.08661,3239.8,3239.4,0.175]
[1736929345177,3.08676,3239.7,3239.4,0.175]
[1736929345662,3.08676,3239.7,3239.3,0.8166]
[1736929345966,3.08676,3239.7,3239.5,0.175]
[1736929350740,5.99203427,3239.7,3239.5,0.175]
[1736929353692,3.08676,3239.7,3239.5,0.175]
[1736929354060,3.08655,3239.9,3239.5,0.175]
[1736929354462,3.08632,3240.1,3239.5,0.175]
[1736929354682,3.08632,3240.1,3239.6,0.8028]
[1736929355997,3.08642,3240.0,3239.6,0.8028]
[1736929357401,5.99169427,3240.0,3239.6,0.8028]
[1736929360717,2.90527427,3240.0,3239.6,0.8028]
[1736929361001,3.08626,3240.2,3239.6,0.83366586]
[1736929361166,3.08626,3240.2,3239.6,0.8028]
[1736929361716,2.90527427,3240.3,3239.6,0.8028]
[1736929361879,2.90527427,3240.3,3239.7,1.06947963]
[1736929362080,2.90527427,3240.3,3239.8,0.18722796]
[1736929362494,5.99140427,3240.3,3239.9,0.8028]
[1736929363603,2.90527427,3240.3,3239.9,0.8028]
[1736929363781,2.90527427,3240.6,3239.9,0.8028]
[1736929364771,5.99113427,3240.6,3239.9,0.8028]
[1736929364971,5.99113427,3240.6,3240.0,3.47786237]
[1736929365198,5.99113427,3240.6,3240.1,0.34778624]
[1736929365780,5.99113427,3240.6,3240.0,0.8028]
[1736929368019,2.90527427,3240.6,3240.0,0.8028]
[1736929368727,2.90527427,3240.6,3240.1,3.96842884]
[1736929369073,5.99112427,3240.6,3240.1,3.96842884]
[1736929370307,5.99112427,3240.6,3240.2,2.67628773]
[1736929370482,5.99112427,3240.6,3240.2,3.15341061]
[1736929371126,5.99112427,3240.6,3240.2,1.54763797]
[1736929371276,5.99112427,3240.6,3240.3,1.07051509]
[1736929372127,3.86133,3240.4,3240.3,1.07051509]
[1736929372473,6.86133,3240.4,3240.3,1.07051509]
[1736929372680,3.0,3240.3,3240.0,1.29214111]
[1736929372984,5.99159427,3240.1,3240.0,1.29214111]
[1736929373519,5.99159427,3240.1,3239.5,4.20845277]
[1736929373520,3.08671,3239.7,3239.5,0.9781]
[1736929374087,3.08671,3239.7,3239.5,0.175]
[1736929378719,3.08654,3239.9,3239.5,0.175]
[1736929378929,3.08654,3239.9,3239.6,0.8031]
[1736929379487,3.08662,3239.8,3239.6,0.8031]
[1736929379687,3.08662,3239.8,3239.5,0.175]
[1736929380005,3.08662,3239.8,3239.7,1.07119098]
[1736929380812,3.08662,3239.8,3239.5,0.175]
[1736929381193,3.08662,3239.8,3239.6,1.07123666]
[1736929381726,3.08662,3239.8,3239.5,0.175]
[1736929383545,3.08671,3239.7,3239.5,0.175]
[1736929383701,3.21394527,3239.7,3239.3,1.29214111]
[1736929383912,2.90527427,3239.4,3239.3,1.46714111]
[1736929384093,3.08682,3239.6,3239.3,1.46714111]
[1736929384407,3.08682,3239.6,3239.3,0.175]
[1736929385265,3.08682,3239.6,3239.4,1.0712227]
[1736929385730,3.08682,3239.6,3239.3,0.175]
[1736929386522,2.90527427,3239.7,3239.3,0.175]
[1736929386722,3.2754817,3239.7,3239.3,0.175]
[1736929386893,3.08707,3239.4,3239.3,0.175]
[1736929388810,5.99234427,3239.4,3239.3,0.175]
[1736929391027,5.99234427,3239.4,3239.1,0.175]
[1736929394056,0.7968,3239.3,3238.8,2.11154111]
[1736929394243,5.99254427,3239.1,3238.9,0.175]
[1736929395885,5.99254427,3239.1,3238.6,2.11154111]
[1736929396048,5.99254427,3239.1,3238.8,0.175]
[1736929399186,3.08727,3239.1,3238.8,0.175]
[1736929413883,3.08737,3239.0,3238.8,0.175]
[1736929417382,3.08737,3239.0,3238.9,2.67814515]
[1736929417848,3.08737,3239.0,3238.9,1.07125806]
[1736929419063,3.08737,3239.0,3238.9,2.67903392]
[1736929422530,3.08737,3239.0,3238.9,3.97117503]
[1736929423165,3.08737,3239.0,3238.9,4.14617503]
[1736929427538,3.08737,3239.0,3238.9,2.85403392]
[1736929430145,3.08737,3239.0,3238.9,6.93824269]
[1736929430834,6.09638496,3239.8,3239.0,0.782]
[1736929431039,6.09638496,3239.8,3238.9,7.89049518]
[1736929431040,9.77841785,3239.8,3239.2,0.782]
[1736929432192,4.46213289,3239.8,3239.5,1.29754746]
[1736929432621,1.37551289,3239.6,3239.5,1.29754746]
[1736929432809,1.37551289,3239.6,3239.4,1.93821166]
[1736929433011,1.37551289,3239.6,3239.4,2.46866105]
[1736929433638,1.37551289,3239.6,3239.5,2.68164477]
[1736929433853,3.0863,3240.2,3239.5,2.68164477]
[1736929434145,1.37551289,3240.2,3239.6,0.81286325]
[1736929434350,5.31628496,3240.3,3239.6,0.782]
[1736929434351,1.37551289,3239.8,3239.6,0.782]
[1736929434552,3.08664,3239.8,3239.7,0.175]
[1736929434718,1.37551289,3239.8,3239.7,0.175]
[1736929435094,1.37551289,3239.8,3239.7,4.15278092]
[1736929435505,3.08642,3240.0,3239.7,4.15278092]
[1736929435900,3.08642,3240.0,3239.7,2.85664477]
[1736929436758,3.08642,3240.0,3239.8,2.68164477]
[1736929437353,3.08270393,3240.0,3239.8,2.68164477]
[1736929437519,3.08270393,3240.0,3239.7,0.175]
[1736929437976,3.08652,3239.9,3239.7,0.175]
[1736929438748,5.99095501,3239.8,3239.7,0.175]
[1736929440462,3.08645,3240.0,3239.7,0.175]
[1736929440757,2.90434501,3240.1,3239.7,0.175]
[1736929441537,8.40249496,3240.3,3239.8,1.0707933]
[1736929441763,8.40249496,3240.3,3239.9,0.782]
[1736929442056,8.40249496,3240.3,3239.9,0.98477933]
[1736929442222,8.40249496,3240.3,3239.9,3.66135755]
[1736929442928,8.40249496,3240.3,3240.0,1.0707933]
[1736929443307,3.08621,3240.3,3240.0,1.0707933]
[1736929443849,2.90434501,3240.1,3240.0,1.0707933]
[1736929444054,3.08651,3239.9,3239.7,1.29613615]
[1736929444335,5.99095501,3239.8,3239.7,1.47113615]
[1736929444906,5.99095501,3239.8,3239.7,0.175]
[1736929445352,3.08682,3239.6,3239.3,1.29613615]
[1736929445613,3.08682,3239.6,3239.5,0.175]
[1736929445816,3.08682,3239.6,3239.1,1.94420423]
[1736929445817,3.08682,3239.6,3239.2,1.29613615]
[1736929445969,3.08682,3239.6,3239.3,0.175]
[1736929446926,0.7695,3239.7,3239.3,0.175]
[1736929447100,5.99096501,3239.8,3239.3,0.175]
[1736929447432,3.08646,3240.0,3239.4,0.7892]
[1736929447622,3.08646,3240.0,3239.4,1.85938003]
[1736929447773,2.90434501,3240.1,3239.5,0.7892]
[1736929447972,5.99037501,3240.4,3239.7,0.7892]
[1736929448912,2.90434501,3240.4,3239.8,2.67525574]
[1736929449112,2.90434501,3240.4,3239.9,0.7892]
[1736929450131,2.90434501,3240.4,3239.9,4.76059189]
[1736929451031,2.90434501,3240.4,3240.0,2.67525574]
[1736929452033,2.90434501,3240.4,3240.1,1.07018003]
[1736929452215,2.90434501,3240.4,3240.2,0.175]
[1736929458136,5.99009501,3240.7,3240.2,0.175]
[1736929458345,5.31628496,3240.8,3240.3,0.7892]
[1736929458902,8.40196496,3240.8,3240.3,0.7892]
[1736929459308,5.31628496,3240.8,3240.3,0.82006029]
[1736929459505,5.31628496,3240.8,3240.3,0.7892]
[1736929459817,5.31628496,3240.8,3240.4,0.03085752]
[1736929459992,5.31628496,3240.8,3240.5,0.7892]
[1736929461339,5.98989501,3241.0,3240.5,1.05446448]
[1736929461505,2.90434501,3241.3,3240.5,1.05446448]
[1736929461837,5.98954501,3241.3,3240.7,0.7892]
[1736929462800,2.90434501,3241.3,3240.7,0.7892]
[1736929463008,2.90434501,3241.3,3240.7,0.82005381]
[1736929463749,2.90434501,3241.7,3240.7,0.82005381]
[1736929464037,0.7695,3243.9,3243.0,3.05]
[1736929464187,0.7695,3243.9,3243.1,0.187]
[1736929464603,0.7695,3243.9,3243.0,0.0308338]
[1736929464818,3.67384501,3244.3,3243.0,0.0308338]
[1736929465336,3.08249,3244.2,3243.1,0.187]
[1736929465554,3.08249,3244.2,3243.2,0.187]
[1736929466743,2.90434501,3244.0,3243.2,0.187]
[1736929467720,2.90434501,3243.7,3243.3,0.187]
[1736929468817,2.90434501,3243.7,3243.4,0.187]
[1736929469853,2.90434501,3243.7,3242.9,3.08362]
[1736929470155,2.90434501,3243.7,3243.1,0.187]
[1736929470335,2.90434501,3243.4,3242.2,0.7892]
[1736929470524,2.90434501,3243.1,3242.3,0.187]
[1736929470951,2.90434501,3243.1,3242.4,0.187]
[1736929471246,2.90434501,3243.1,3242.5,0.327119]
[1736929471548,2.90434501,3243.1,3242.6,0.187]
[1736929472854,0.7695,3244.0,3242.6,0.187]
[1736929473052,2.90434501,3243.9,3242.8,0.7892]
[1736929473253,0.7695,3244.0,3242.8,0.7892]
[1736929473428,3.08273,3243.9,3242.9,0.39038551]
[1736929473953,3.08273,3243.9,3242.9,0.42121946]
[1736929474524,3.08273,3243.9,3242.9,0.39038551]
[1736929477660,2.90434501,3243.9,3242.8,0.7892]
[1736929477864,3.08298,3243.7,3243.0,0.187]
[1736929478059,3.083,3243.6,3242.9,0.187]
[1736929479059,3.0831,3243.5,3243.0,0.187]
[1736929479502,3.08318,3243.4,3242.8,0.7892]
[1736929479653,3.0834,3243.2,3242.9,0.187]
[1736929479988,3.0834,3243.2,3242.7,0.187]
[1736929480674,0.7621,3243.3,3242.7,0.187]
[1736929481662,3.0834,3243.2,3242.7,0.187]
[1736929483287,0.7621,3243.3,3242.4,0.7981]
[1736929483476,3.08349,3243.1,3242.5,0.187]
[1736929483873,0.7621,3243.3,3242.5,0.187]
[1736929484183,0.7621,3243.7,3242.5,0.187]
[1736929484389,3.08319,3243.4,3242.5,0.187]
[1736929484967,3.08319,3243.4,3242.6,0.03083684]
[1736929485162,3.08319,3243.4,3242.6,0.41000368]
[1736929488263,0.7621,3243.7,3242.4,0.7981]
[1736929488466,8.98723501,3243.8,3242.4,0.7981]
[1736929488467,2.90434501,3243.1,3242.4,0.7981]
[1736929488665,3.08395,3242.6,3242.3,0.45866969]
[1736929489585,2.90434501,3242.8,3242.1,0.7792]
[1736929489895,5.98818501,3242.8,3242.2,0.187]
[1736929490083,3.08384,3242.8,3242.2,0.187]
[1736929490461,0.8152,3243.0,3242.2,0.187]
[1736929490676,0.6803095,3242.9,3242.2,0.187]
[1736929491067,3.08396,3242.6,3242.2,0.187]
[1736929491496,3.08396,3242.6,3242.1,0.7792]
[1736929491696,3.08396,3242.6,3242.2,0.187]
[1736929492384,3.08396,3242.6,3242.3,0.28815509]
[1736929493815,3.08396,3242.6,3242.4,0.28815509]
[1736929495264,3.08396,3242.6,3242.3,0.184]
[1736929497602,3.08376,3242.8,3242.3,0.184]
[1736929498592,3.08385,3242.7,3242.3,0.184]
[1736929500418,0.6803095,3242.9,3242.3,0.184]
[1736929500419,9.08026446,3242.9,3242.3,0.184]
[1736929501324,3.08377,3242.8,3242.3,0.184]
[1736929502056,5.31628496,3242.9,3242.4,0.81923956]
[1736929502200,5.31628496,3242.9,3242.5,0.39075846]
[1736929502523,5.31628496,3242.9,3242.6,0.7884]
[1736929502694,5.31628496,3242.9,3242.6,0.81923638]
[1736929502899,5.31628496,3242.9,3242.6,1.88360601]
[1736929503105,3.08292,3243.7,3242.7,0.7884]
[1736929503422,3.08292,3243.7,3242.9,0.7884]
[1736929504417,3.08292,3243.7,3243.0,0.23105208]
[1736929505729,3.08254,3244.1,3243.1,0.81133278]
[1736929505888,3.08254,3244.1,3243.2,0.184]
[1736929506196,3.08254,3244.1,3243.4,0.7805]
[1736929507791,3.88273,3244.4,3243.4,0.7805]
[1736929507974,3.0827,3244.0,3243.4,0.7805]
[1736929508346,3.08224,3244.4,3243.5,0.81132944]
[1736929508545,3.0825,3244.2,3243.5,0.7805]
[1736929508894,3.0825,3244.2,3243.5,3.44996178]
[1736929509305,3.0825,3244.2,3243.6,3.95919357]
[1736929509727,3.08223,3244.4,3243.6,3.95919357]
[1736929509902,3.08233,3244.3,3243.7,2.66946178]
[1736929510064,0.8005,3244.8,3243.8,0.7805]
[1736929510263,3.08203,3244.7,3243.8,0.7805]
[1736929510716,3.08224,3244.4,3243.8,4.73969357]
[1736929511164,3.08224,3244.4,3243.9,2.66946178]
[1736929511784,3.08224,3244.4,3243.8,0.7805]
[1736929512214,3.08206,3244.6,3243.8,1.27855054]
[1736929512765,3.08206,3244.6,3243.9,2.66790348]
[1736929512994,3.08206,3244.6,3244.0,0.7805]
[1736929513193,3.08206,3244.6,3244.1,0.184]
[1736929514119,3.08184,3244.9,3244.1,0.184]
[1736929514566,3.08187,3244.8,3244.1,0.21482107]
[1736929514767,3.08187,3244.8,3244.1,0.184]
[1736929515821,3.08187,3244.8,3244.1,0.21482107]
[1736929516011,3.0,3245.1,3244.2,0.7874]
[1736929516165,3.08166,3245.1,3244.3,0.03081831]
[1736929516365,3.08166,3245.1,3244.4,0.7874]
[1736929516604,3.08166,3245.1,3244.5,0.03081832]
[1736929516998,3.08139,3245.3,3244.6,0.7874]